fUSD/lending_fUSD_20240923
["ID","MTS","AMOUNT","RATE_DAILY","PERIOD"]
[338989013,1727104232563,-500.0,0.00012003,2]
[338989014,1727104232572,-427.3192788,0.00012003,2]
[338989015,1727104232582,-250.0,0.00012003,2]
[338989016,1727104232591,-150.02,0.00012045,2]
[338989017,1727104232600,-150.02,0.00012045,2]
[338989018,1727104232609,-17106.39,0.00012055,2]
[338989019,1727104232618,-282.35390266,0.00012069,2]
[338989020,1727104232628,-1749.19,0.00012099,2]
[338989021,1727104232637,-388.0,0.00012172,2]
[338989022,1727104232646,-234.0,0.00012218,2]
[338989023,1727104232656,-900.0,0.00012364,2]
[338989024,1727104232665,-167.25,0.00012445,2]
[338989025,1727104232673,-500.0,0.00012464,2]
[338989026,1727104232682,-500.0,0.00012464,2]
[338989027,1727104232691,-162.571253,0.00012474,2]
[338989028,1727104232701,-449.236587,0.00012474,2]
[338989029,1727104232710,-449.236587,0.0001263,2]
[338989030,1727104232719,-799.0,0.00012672,2]
[338989031,1727104232728,-1076.74255732,0.0001274,2]
[338989032,1727104232737,-941.92,0.00012781,2]
[338989033,1727104232747,-845.02,0.00012784,2]
[338989034,1727104232756,-422.86,0.00012784,2]
[338989035,1727104232768,-422.86,0.00012784,2]
[338989036,1727104232777,-422.54,0.00012784,2]
[338989037,1727104232786,-449.236587,0.00012786,2]
[338989038,1727104232795,-1203.038,0.000128,2]
[338989039,1727104232805,-300.0,0.000128,2]
[338989040,1727104232814,-1588.6922,0.000128,2]
[338989041,1727104232824,-1810.65222859,0.000128,2]
[338989042,1727104232992,-1153.05549761,0.000128,2]
[338989043,1727104233002,-298.16768616,0.00012801,2]
[338989044,1727104233011,-3161.60093088,0.00012801,2]
[338989045,1727104233030,-1583.60155312,0.00012801,2]
[338989046,1727104233039,-892.28192288,0.0001281,2]
[338989047,1727104233050,-321.41007712,0.0001281,2]
[338989048,1727104233060,-150.0,0.0001281,2]
[338989049,1727104233069,-248.01411838,0.00012811,2]
[338989050,1727104233094,-1649.09184316,0.00012811,2]
[338989051,1727104233108,-365.35210606,0.00012811,2]
[338989052,1727104233120,-701.24965858,0.00012811,2]
[338989053,1727104233129,-455.0,0.00012816,2]
[338989054,1727104233139,-419.60708216,0.0001287,2]
[338989055,1727104233148,-500.0,0.00012876,2]
[338989056,1727104233158,-500.0,0.00012876,2]
[338989057,1727104233167,-500.0,0.00012876,2]
[338989058,1727104233177,-500.0,0.00012876,2]
[338989059,1727104233186,-424.14325926,0.00012876,2]
[338989060,1727104233197,-75.85674074,0.00012876,2]
[338989061,1727104233207,-500.0,0.00012876,2]
[338989062,1727104233216,-500.0,0.00012876,2]
[338989063,1727104233225,-500.0,0.00012876,2]
[338989064,1727104233235,-500.0,0.00012876,2]
[338989065,1727104233244,-500.0,0.00012876,2]
[338989066,1727104233254,-500.0,0.00012876,2]
[338989067,1727104233263,-500.0,0.00012876,2]
[338989068,1727104233272,-500.0,0.00012876,2]
[338989069,1727104233282,-500.0,0.00012876,2]
[338989070,1727104233291,-500.0,0.00012876,2]
[338989071,1727104233300,-500.0,0.00012876,2]
[338989072,1727104233310,-227.26897841,0.00012876,2]
[338989073,1727104233320,-500.0,0.00012876,2]
[338989074,1727104233329,-500.0,0.00012876,2]
[338989075,1727104233340,-500.0,0.00012876,2]
[338989076,1727104233349,-500.0,0.00012876,2]
[338989077,1727104233358,-500.0,0.00012876,2]
[338989078,1727104233367,-500.0,0.00012876,2]
[338989079,1727104233376,-500.0,0.00012876,2]
[338989080,1727104233386,-500.0,0.00012876,2]
[338989081,1727104233396,-500.0,0.00012876,2]
[338989082,1727104233405,-500.0,0.00012876,2]
[338989083,1727104233414,-500.0,0.00012876,2]
[338989084,1727104233424,-500.0,0.00012876,2]
[338989085,1727104233433,-500.0,0.00012876,2]
[338989086,1727104233443,-500.0,0.00012876,2]
[338989087,1727104233453,-500.0,0.00012876,2]
[338989088,1727104233463,-500.0,0.00012876,2]
[338989089,1727104233472,-500.0,0.00012876,2]
[338989090,1727104233481,-500.0,0.00012876,2]
[338989091,1727104233491,-500.0,0.00012876,2]
[338989092,1727104233501,-500.0,0.00012876,2]
[338989093,1727104233511,-500.0,0.00012896,2]
[338989094,1727104233522,-606.4471,0.000129,2]
[338989095,1727104233531,-99696.3483,0.000129,2]
[338989096,1727104233541,-15611.3054,0.000129,2]
[338989097,1727104233550,-156.37101511,0.000129,2]
[338989098,1727104233559,-156.37101511,0.000129,2]
[338989099,1727104233569,-156.37101511,0.000129,2]
[338989100,1727104233578,-156.37101511,0.000129,2]
[338989101,1727104233589,-156.37101511,0.000129,2]
[338989102,1727104233598,-156.37101511,0.000129,2]
[338989103,1727104233608,-156.37101511,0.000129,2]
[338989104,1727104233618,-156.87,0.000129,2]
[338989105,1727104233629,-208.14,0.000129,2]
[338989106,1727104233639,-264.56,0.000129,2]
[338989107,1727104233649,-361.33023562,0.000129,2]
[338989108,1727104233659,-449.236587,0.00012942,2]
[338989109,1727104233669,-175.049,0.00012943,2]
[338989110,1727104233680,-161.21471013,0.00012973,2]
[338989111,1727104233689,-216.95,0.0001299,2]
[338989112,1727104233699,-3229.2225317,0.00012993,2]
[338989113,1727104233708,-781.01885963,0.00012993,2]
[338989114,1727104233721,-2538.53677235,0.00012993,2]
[338989115,1727104233732,-397.92779334,0.00012993,2]
[338989116,1727104233752,-3125.27043744,0.00012993,2]
[338989117,1727104233767,-478.59396333,0.00012993,2]
[338989118,1727104233778,-6778.47824333,0.00012993,2]
[338989123,1727104239315,-1101.02903969,0.00012822,2]
[338989124,1727104239326,-1862.67868649,0.00012822,2]
[338989125,1727104239338,-2963.70772618,0.00012833,2]
[338989126,1727104239348,-222.88946008,0.00012899,2]
[338989127,1727104239357,-500.0,0.00012973,2]
[338989128,1727104239367,-1046.34070848,0.00012993,2]
[338989129,1727104239376,-676.3124269,0.00012993,2]
[338989130,1727104239385,-472.10049218,0.00012998,2]
[338989132,1727104239394,-520.19231959,0.00012998,2]
[338989133,1727104239403,-471.1,0.00012998,2]
[338989134,1727104239412,-355.3197562,0.00012998,2]
[338989135,1727104239421,-500.0,0.00012998,2]
[338989136,1727104239431,-500.0,0.00012998,2]
[338989137,1727104239440,-500.0,0.00012998,2]
[338989138,1727104239449,-500.0,0.00012998,2]
[338989139,1727104239458,-500.0,0.00012998,2]
[338989140,1727104239467,-1018.32163859,0.00012998,2]
[338989141,1727104239479,-746.17836141,0.00012998,2]
[338989142,1727104239489,-2133.25532421,0.00012999,2]
[338989143,1727104239500,-2212.02777319,0.00012999,2]
[338989144,1727104239512,-953.325,0.00012999,2]
[338989146,1727104240042,-1600.0,0.00012999,2]
[338989148,1727104240054,-274.27572277,0.00012999,2]
[338989150,1727104240066,-92827.11617983,0.00012999,2]
[338989151,1727104240076,-500.0,0.00012999,2]
[338989152,1727104240088,-327.74270833,0.00012999,2]
[338989153,1727104240099,-500.0,0.00012999,2]
[338989154,1727104240109,-1219.39,0.00012999,2]
[338989155,1727104240120,-500.0,0.00012999,2]
[338989156,1727104240130,-500.0,0.00012999,2]
[338989157,1727104240140,-500.0,0.00012999,2]
[338989158,1727104240150,-500.0,0.00012999,2]
[338989159,1727104240160,-500.0,0.00012999,2]
[338989160,1727104240170,-500.0,0.00012999,2]
[338989161,1727104240180,-1764.5,0.00012999,2]
[338989162,1727104240191,-1764.5,0.00012999,2]
[338989163,1727104240201,-1764.5,0.00012999,2]
[338989164,1727104240210,-1764.5,0.00012999,2]
[338989165,1727104240220,-1764.5,0.00012999,2]
[338989166,1727104240229,-1764.5,0.00012999,2]
[338989167,1727104240239,-1764.5,0.00012999,2]
[338989168,1727104240249,-1764.5,0.00012999,2]
[338989169,1727104240259,-1764.5,0.00012999,2]
[338989170,1727104240268,-1764.5,0.00012999,2]
[338989171,1727104240279,-1764.5,0.00012999,2]
[338989172,1727104240289,-1764.5,0.00012999,2]
[338989173,1727104240299,-1764.5,0.00012999,2]
[338989175,1727104240309,-1764.5,0.00012999,2]
[338989177,1727104240318,-1764.5,0.00012999,2]
[338989179,1727104240327,-395.28999214,0.00012999,2]
[338989180,1727104240342,-1369.21000786,0.00012999,2]
[338989182,1727104240351,-1764.5,0.00012999,2]
[338989185,1727104240361,-1764.5,0.00012999,2]
[338989187,1727104240371,-1764.5,0.00012999,2]
[338989189,1727104240382,-1764.5,0.00012999,2]
[338989191,1727104240391,-1764.5,0.00012999,2]
[338989193,1727104240401,-1764.5,0.00012999,2]
[338989195,1727104240411,-1764.59307504,0.00012999,2]
[338989197,1727104240420,-515.0,0.00012999,2]
[338989199,1727104240430,-160.20712036,0.00013,2]
[338989201,1727104240439,-3754.42657137,0.00013,2]
[338989203,1727104240449,-198.88640454,0.00013,2]
[338989205,1727104240458,-305970.00291654,0.00013,2]
[338989207,1727104240470,-534.02114835,0.00013,2]
[338989210,1727104240481,-3742.70217563,0.00013,2]
[338989212,1727104240491,-811.46324544,0.00013,2]
[338989214,1727104240503,-424.88308538,0.00013,2]
[338989216,1727104240514,-667.57069182,0.00013,2]
[338989219,1727104240526,-1661.3736236,0.00013,2]
[338989221,1727104240538,-4785.7008857,0.00013,2]
[338989223,1727104240551,-69206.29164798,0.00013,2]
[338989225,1727104240562,-1153.0,0.00013,2]
[338989228,1727104240573,-12759.24509833,0.00013,2]
[338989230,1727104240584,-729.17517403,0.00013,2]
[338989232,1727104240599,-475.82133345,0.00013,2]
[338989234,1727104240610,-283.55847122,0.00013,2]
[338989237,1727104240622,-32234.58733742,0.00013,2]
[338989239,1727104240632,-3525.86554151,0.00013,2]
[338989241,1727104240643,-7082.35051429,0.00013,2]
[338989243,1727104240654,-2283.51462282,0.00013,2]
[338989246,1727104240665,-312.47564603,0.00013,2]
[338989248,1727104240677,-500.0,0.00013,2]
[338989250,1727104240689,-26678.60016193,0.00013,2]
[338989252,1727104240700,-2976.02181235,0.00013,2]
[338989255,1727104240713,-5307.9,0.00013,2]
[338989257,1727104240724,-711.24,0.00013,2]
[338989259,1727104240735,-328.47396994,0.00013,2]
[338989262,1727104240747,-1272.50451953,0.00013,2]
[338989264,1727104240758,-270.59,0.00013,2]
[338989266,1727104240772,-1417.37274056,0.00013,2]
[338989268,1727104240783,-496.07624443,0.00013,2]
[338989271,1727104240795,-1060.86500547,0.00013,2]
[338989273,1727104240806,-588.950825,0.00013,2]
[338989275,1727104240817,-499.9678047,0.00013,2]
[338989279,1727104240845,-492.20075902,0.00013,2]
[338989340,1727104243577,-311.42,0.00012844,2]
[338989341,1727104243613,-2652.28772618,0.00012844,2]
[338989342,1727104243622,-16413.80262052,0.00013,2]
[338989343,1727104243633,-69601.09999861,0.00013,2]
[338989344,1727104243644,-272.517835,0.00013,2]
[338989345,1727104243657,-36020.53885386,0.00013,2]
[338989349,1727104245370,152.76,9.589e-05,2]
[338989351,1727104246344,-16824.281272,0.00013,2]
[338989352,1727104246356,-11484.6256,0.00013,2]
[338989353,1727104246367,-570.672,0.00013,2]
[338989355,1727104264196,500.0,9.724e-05,2]
[338989356,1727104308244,500.0,9.724e-05,2]
[338989357,1727104754720,200.0,0.0001425,120]
[338989358,1727104842731,301.47,9.822e-05,2]
[338989359,1727105088730,-587.825172,0.00011621,2]
[338989360,1727105088756,-250.0,0.00011664,2]
[338989361,1727105088777,-500.0,0.00011681,2]
[338989362,1727105088798,-416.47,0.00011721,2]
[338989363,1727105088821,-541.44,0.00011721,2]
[338989364,1727105088842,-243.5,0.00011792,2]
[338989365,1727105088863,-250.0,0.00011814,2]
[338989366,1727105088884,-2000.0,0.00011828,2]
[338989367,1727105088907,-1000.0,0.00011854,2]
[338989368,1727105088929,-250.0,0.00011878,2]
[338989369,1727105088951,-248.5294,0.0001189,2]
[338989370,1727105088972,-150.99,0.0001189,2]
[338989371,1727105088994,-1053.21,0.00011902,2]
[338989372,1727105089016,-364.05,0.0001194,2]
[338989373,1727105089038,-300.0,0.00011989,2]
[338989374,1727105089060,-5489.6825,0.0001199,2]
[338989375,1727105089083,-23900.0,0.00012003,2]
[338989376,1727105089105,-167.74,0.00012045,2]
[338989377,1727105089129,-150.99,0.00012064,2]
[338989378,1727105089151,-301.47,0.00012086,2]
[338989379,1727105089175,-176.1,0.00012445,2]
[338989380,1727105089196,-1617.12,0.00012445,2]
[338989381,1727105089221,-299.99,0.00012463,2]
[338989382,1727105089244,-368.2133641,0.00012464,2]
[338989383,1727105089267,-372.6795639,0.00012464,2]
[338989396,1727105307971,1050.0,0.00011,2]
[338989438,1727105431409,-150.0,0.00011688,2]
[338989439,1727105431422,-150.0,0.00011688,2]
[338989441,1727105431431,-150.0,0.00011688,2]
[338989442,1727105431441,-150.0,0.00011688,2]
[338989444,1727105431450,-195.4,0.00011899,2]
[338989446,1727105431459,-250.0,0.00011926,2]
[338989447,1727105431468,-200.0,0.00011935,2]
[338989448,1727105431477,-182.02,0.00011946,2]
[338989449,1727105431487,-127.3204361,0.00012464,2]
[338989450,1727105431497,-197.398171,0.00012474,2]
[338989451,1727105431506,-300.0,0.00012783,2]
[338989452,1727105431515,-455.0613929,0.00012784,2]
[338989453,1727105431528,-298.4986071,0.00012784,2]
[338989454,1727105431537,-640.7013929,0.00012784,2]
[338989455,1727105431548,-112.8586071,0.00012784,2]
[338989456,1727105431557,-753.56,0.00012784,2]
[338989457,1727105431566,-352.67,0.00012784,2]
[338989458,1727105431575,-985.02455379,0.0001279,2]
[338989459,1727105431586,-6241.95978396,0.0001279,2]
[338989460,1727105431596,-499.99,0.0001279,2]
[338989461,1727105431605,-150.0,0.00012799,2]
[338989462,1727105431614,-2899.0953,0.000128,2]
[338989463,1727105431623,-753.56,0.000128,2]
[338989464,1727105431632,-753.56,0.000128,2]
[338989465,1727105431641,-753.56,0.000128,2]
[338989466,1727105431649,-753.56,0.000128,2]
[338989467,1727105431658,-753.56,0.000128,2]
[338989468,1727105431667,-753.56,0.000128,2]
[338989469,1727105431676,-2083.65253743,0.00012804,2]
[338989470,1727105431685,-42843.04101361,0.00012805,2]
[338989471,1727105431696,-500.0,0.00012895,2]
[338989472,1727105431705,-2000.0,0.00012895,2]
[338989473,1727105431714,-500.0,0.00012895,2]
[338989474,1727105431723,-2000.0,0.00012895,2]
[338989475,1727105431732,-500.0,0.00012896,2]
[338989476,1727105431741,-500.0,0.00012896,2]
[338989477,1727105431751,-2000.0,0.00012896,2]
[338989478,1727105431759,-500.0,0.00012896,2]
[338989479,1727105431768,-500.0,0.00012896,2]
[338989480,1727105431779,-2000.0,0.00012896,2]
[338989481,1727105431788,-2000.0,0.00012896,2]
[338989482,1727105431797,-2000.0,0.00012896,2]
[338989483,1727105431806,-400.272175,0.00012896,2]
[338989484,1727105431818,-99.727825,0.00012896,2]
[338989485,1727105431827,-500.0,0.00012896,2]
[338989486,1727105431836,-248.372175,0.00012896,2]
[338989487,1727105431847,-251.627825,0.00012896,2]
[338989488,1727105431856,-748.743895,0.00012899,2]
[338989489,1727105431867,-1493.40198445,0.00012899,2]
[338989490,1727105431877,-2702.30862055,0.00012899,2]
[338989491,1727105431886,-1186.6985,0.00012899,2]
[338989492,1727105431895,-1680.64603949,0.00012899,2]
[338989493,1727105431904,-1680.64603946,0.00012899,2]
[338989494,1727105431913,-1518.67388111,0.00012899,2]
[338989495,1727105431924,-161.97215835,0.00012899,2]
[338989496,1727105431933,-1680.64603946,0.00012899,2]
[338989497,1727105431942,-1680.64603946,0.00012899,2]
[338989498,1727105431952,-1328.85088184,0.000129,2]
[338989499,1727105432145,-351.79515762,0.000129,2]
[338989500,1727105432155,-1680.64603946,0.000129,2]
[338989501,1727105432164,-1000.0,0.000129,2]
[338989502,1727105432173,-1471.267,0.000129,2]
[338989503,1727105432182,-1680.64603946,0.000129,2]
[338989504,1727105432190,-1680.64603946,0.000129,2]
[338989505,1727105432199,-347.36780753,0.000129,2]
[338989506,1727105432208,-1507.12,0.000129,2]
[338989507,1727105432218,-753.56,0.000129,2]
[338989508,1727105432227,-753.56,0.000129,2]
[338989509,1727105432236,-339.45450723,0.000129,2]
[338989510,1727105432247,-414.10549277,0.000129,2]
[338989511,1727105432256,-168.64780148,0.000129,2]
[338989512,1727105432265,-166.77911662,0.000129,2]
[338989513,1727105432275,-166.77911662,0.000129,2]
[338989514,1727105432285,-166.77911662,0.000129,2]
[338989515,1727105432294,-166.77911662,0.000129,2]
[338989516,1727105432304,-166.77911662,0.000129,2]
[338989517,1727105432313,-167.27,0.000129,2]
[338989518,1727105432322,-166.51,0.000129,2]
[338989519,1727105432332,-211.65,0.000129,2]
[338989520,1727105432343,-901.88979979,0.000129,2]
[338989527,1727105438446,-575.30635287,0.000129,2]
[338989528,1727105438484,-203.4498868,0.000129,2]
[338989530,1727105438494,-1033.5251132,0.000129,2]
[338989531,1727105438523,-1427.07291214,0.000129,2]
[338989532,1727105438533,-235.04746812,0.000129,2]
[338989533,1727105438563,-518.51253188,0.000129,2]
[338989534,1727105438573,-981.48746812,0.00012901,2]
[338989535,1727105438584,-1102.16506931,0.00012901,2]
[338989536,1727105438594,-175.049,0.00012914,2]
[338989537,1727105438603,-150.0,0.00012986,2]
[338989538,1727105438613,-1454.763496,0.00012995,2]
[338989539,1727105438623,-22912.49812448,0.00012995,2]
[338989540,1727105438634,-636.18,0.00012995,2]
[338989541,1727105439357,-1235.02261279,0.00012995,2]
[338989543,1727105439424,-3756.66,0.00012995,2]
[338989557,1727105439543,-1908.5139269,0.00012995,2]
[338989615,1727105442652,-4651.62288263,0.00012995,2]
[338989617,1727105442661,-500.0,0.00012998,2]
[338989619,1727105442671,-500.0,0.00012998,2]
[338989621,1727105442681,-500.0,0.00012998,2]
[338989623,1727105442690,-500.0,0.00012998,2]
[338989624,1727105442698,-500.0,0.00012998,2]
[338989625,1727105442707,-500.0,0.00012998,2]
[338989626,1727105442717,-254.85,0.00012998,2]
[338989627,1727105442726,-500.0,0.00012998,2]
[338989628,1727105442735,-295.7,0.00012998,2]
[338989629,1727105442743,-500.0,0.00012998,2]
[338989630,1727105442752,-500.0,0.00012998,2]
[338989631,1727105442761,-575.59,0.00012998,2]
[338989632,1727105442770,-500.0,0.00012998,2]
[338989633,1727105442779,-500.0,0.00012998,2]
[338989634,1727105442790,-500.0,0.00012998,2]
[338989635,1727105442799,-500.0,0.00012998,2]
[338989636,1727105442808,-500.0,0.00012998,2]
[338989637,1727105442818,-500.0,0.00012998,2]
[338989638,1727105442827,-500.0,0.00012998,2]
[338989639,1727105442836,-500.0,0.00012998,2]
[338989640,1727105442845,-500.0,0.00012998,2]
[338989641,1727105442855,-500.0,0.00012998,2]
[338989642,1727105442864,-500.0,0.00012998,2]
[338989643,1727105442873,-57.92188865,0.00012998,2]
[338989644,1727105442884,-442.07811135,0.00012998,2]
[338989645,1727105442893,-151.17788867,0.00012998,2]
[338989652,1727105445603,-500.35069982,0.000129,2]
[338989653,1727105469090,271.32,0.00010173,2]
[338989654,1727105488030,500.0,9.724e-05,2]
[338989656,1727105524462,1157.0,0.000102,5]
[338989657,1727105608212,678.4,0.00010959,2]
[338989658,1727105657565,500.0,9.724e-05,2]
[338989659,1727105659309,375.84490797,9.724e-05,2]
[338989660,1727105747981,500.0,0.00011,2]
[338989663,1727106040502,311.62,9.963e-05,2]
[338989664,1727106284007,500.0,9.724e-05,2]
[338989685,1727106497853,202.96,0.00010959,2]
[338989728,1727106608007,150.0,9.3e-05,2]
[338989729,1727106631575,-240.17,0.00011617,2]
[338989730,1727106631584,-485.93,0.00011626,2]
[338989731,1727106631594,-250.0,0.00011654,2]
[338989732,1727106631603,-1913.08577331,0.00011679,2]
[338989733,1727106631614,-3568.6202541,0.00011679,2]
[338989734,1727106631625,-756.0,0.00011679,2]
[338989735,1727106631641,-3187.0,0.00011679,2]
[338989736,1727106631738,-12403.47397259,0.00011679,2]
[338989737,1727106631748,-217.34399043,0.00011688,2]
[338989738,1727106631758,-179.99297769,0.00011708,2]
[338989739,1727106631767,-160.0,0.00011718,2]
[338989740,1727106631777,-250.0,0.00011718,2]
[338989741,1727106631787,-785.28661323,0.00011719,2]
[338989743,1727106637744,-267.50338677,0.00011719,2]
[338989744,1727106637753,-155.4,0.00011724,2]
[338989745,1727106637762,-555.19,0.00011808,2]
[338989746,1727106637771,-781.38796451,0.00011844,2]
[338989747,1727106637796,-5344.71361582,0.00011844,2]
[338989748,1727106637807,-1835.14668411,0.00011844,2]
[338989749,1727106637818,-2324.23791,0.00011844,2]
[338989750,1727106637902,-795.2682055,0.00011844,2]
[338989751,1727106637913,-1007.38297438,0.00011844,2]
[338989752,1727106637926,-2681.37354568,0.00011844,2]
[338989753,1727106637935,-150.0,0.0001185,2]
[338989754,1727106637944,-500.0,0.00011866,2]
[338989755,1727106637954,-167.74,0.00011917,2]
[338989756,1727106637964,-840.0,0.00011925,2]
[338989757,1727106637974,-571.51,0.00012,2]
[338989758,1727106637985,-250.0,0.00012003,2]
[338989759,1727106637996,-150.0,0.00012086,2]
[338989760,1727106638007,-385.45159482,0.00012087,2]
[338989761,1727106638025,-701.89106013,0.00012087,2]
[338989762,1727106638038,-12619.08734505,0.00012087,2]
[338989763,1727106638047,-6689.12,0.00012087,2]
[338989764,1727106638058,-18538.17,0.00012087,2]
[338989765,1727106638068,-70.60046145,0.00012087,2]
[338989766,1727106638082,-888.91953855,0.00012087,2]
[338989767,1727106638092,-311.62,0.00012227,2]
[338989768,1727106638104,-500.0,0.00012464,2]
[338989769,1727106638115,-224.618293,0.00012474,2]
[338989770,1727106638126,-161.658689,0.00012474,2]
[338989771,1727106638137,-240.33174,0.00012474,2]
[338989772,1727106638148,-753.56,0.000125,2]
[338989773,1727106638157,-753.56,0.000125,2]
[338989774,1727106638166,-161.658689,0.00012682,2]
[338989775,1727106638175,-1507.12,0.000127,2]
[338989776,1727106638184,-1189.7558,0.000127,2]
[338989777,1727106638197,-150.0,0.00012723,2]
[338989778,1727106638208,-150.0,0.00012724,2]
[338989779,1727106638218,-150.0,0.00012743,2]
[338989780,1727106638228,-150.0,0.0001278,2]
[338989782,1727106638240,-150.0,0.0001279,2]
[338989784,1727106638250,-551.33203158,0.00012791,2]
[338989786,1727106638261,-150.0,0.00012792,2]
[338989787,1727106638273,-150.0,0.00012798,2]
[338989788,1727106638284,-1505.5,0.000128,2]
[338989789,1727106638294,-1518.55,0.000128,2]
[338989790,1727106638304,-150.0,0.00012815,2]
[338989791,1727106638315,-150.0,0.00012822,2]
[338989792,1727106638325,-245.88745338,0.00012826,2]
[338989793,1727106638335,-150.0,0.00012844,2]
[338989794,1727106638344,-150.0,0.00012867,2]
[338989795,1727106638356,-150.0,0.0001288,2]
[338989796,1727106638365,-161.658689,0.0001289,2]
[338989797,1727106638374,-2000.0,0.00012895,2]
[338989798,1727106638384,-500.0,0.00012895,2]
[338989800,1727106638396,-500.0,0.00012896,2]
[338989802,1727106638405,-2000.0,0.00012896,2]
[338989803,1727106638415,-2000.0,0.00012896,2]
[338989804,1727106638424,-500.0,0.00012896,2]
[338989805,1727106638433,-500.0,0.00012896,2]
[338989806,1727106638442,-2339.34642973,0.00012896,2]
[338989807,1727106638451,-160.08831662,0.000129,2]
[338989808,1727106638460,-160.08831662,0.000129,2]
[338989809,1727106638470,-160.08831662,0.000129,2]
[338989810,1727106638479,-160.08831662,0.000129,2]
[338989811,1727106638488,-160.58,0.000129,2]
[338989812,1727106638497,-169.32,0.000129,2]
[338989813,1727106638506,-191.0027676,0.000129,2]
[338989814,1727106638515,-173.7784835,0.000129,2]
[338989815,1727106638524,-165.478,0.00012907,2]
[338989816,1727106638533,-171.803,0.00012907,2]
[338989817,1727106638543,-150.0,0.00012921,2]
[338989818,1727106638552,-150.0,0.00012945,2]
[338989819,1727106638560,-1389.10169162,0.00012972,2]
[338989820,1727106638569,-16051.44301534,0.00012972,2]
[338989821,1727106638579,-500.0,0.00012973,2]
[338989822,1727106638588,-1389.10169162,0.00012985,2]
[338989823,1727106638597,-169.16,0.00012986,2]
[338989824,1727106638607,-253.13405709,0.00012986,2]
[338989825,1727106638616,-15898.03770626,0.00012995,2]
[338989826,1727106638627,-2111.13867946,0.00012995,2]
[338989827,1727106638825,-506.26870493,0.00012995,2]
[338989828,1727106638837,-399.35491428,0.00012995,2]
[338989829,1727106638848,-675.54813812,0.00012995,2]
[338989830,1727106638859,-343.85707999,0.00012995,2]
[338989831,1727106638870,-14913.977862,0.00012995,2]
[338989832,1727106638881,-2249.76838887,0.00012995,2]
[338989833,1727106638894,-5065.1991,0.00012995,2]
[338989834,1727106638905,-23634.8659421,0.00012995,2]
[338989835,1727106638947,-7005.98536701,0.00012995,2]
[338989836,1727106638958,-22833.38855947,0.00012995,2]
[338989837,1727106638969,-9553.154996,0.00012995,2]
[338989838,1727106638981,-9084.2900005,0.00012995,2]
[338989839,1727106638992,-13724.235,0.00012995,2]
[338989840,1727106639004,-1384.75,0.00012995,2]
[338989841,1727106639016,-5915.5,0.00012995,2]
[338989851,1727106639563,-18163.39081705,0.00012995,2]
[338989852,1727106639575,-23017.0,0.00012995,2]
[338989853,1727106639586,-1939.14652698,0.00012995,2]
[338989854,1727106639704,-318.81056815,0.00012995,2]
[338989855,1727106639757,-2227.09716592,0.00012995,2]
[338989856,1727106639768,-637.56346762,0.00012995,2]
[338989941,1727106642697,-442.16915101,0.00011526,2]
[338989942,1727106642707,-20968.30773619,0.00012995,2]
[338989943,1727106642802,-18118.24659125,0.00012995,2]
[338989953,1727106645535,-2018.91217813,0.00012995,2]
[338989954,1727106645548,-498.29912691,0.00012995,2]
[338989955,1727106645587,-6968.16101373,0.00012995,2]
[338989956,1727106645642,-456.67106333,0.00012995,2]
[338989957,1727106645753,-13755.67873326,0.00012995,2]
[338989958,1727106645806,-4084.3711218,0.00012995,2]
[338989959,1727106645817,-9724.32923828,0.00012995,2]
[338989988,1727106716530,500.0,9.724e-05,2]